Cogmind - Beta 16 @@@ ROGUE MODE // 2025.12.04 @ 17:40:46 Player: opdo Result: Destroyed by MF-FC9(R) with Subdweller Machine Gun Performance ------------- Evolutions (0) 0 Regions Visited (2) 400 Robots Destroyed (37) 185 Value Destroyed (1256) 1256 Prototype IDs (0) 0 Alien Tech Used (0) 0 Bonus (-41) -41 TOTAL SCORE: 1800 Bonus ------- Friendly Fire -41 Cogmind --------- Core Integrity 0/250 Matter 228/300 Energy 265/265 System Corruption 0% Temperature Cool (0) Movement Rolling (107) Ox1 Location -10/Subcaves Parts ------- > --- POWER (1) -------- Improved Ion Engine > --- PROPULSION (2) --- Wheel Subdweller Monowheel > --- UTILITY (2) ------ High-capacity Storage Unit Core Shielding > --- WEAPON (2) ------- Barrage Gun Mini Grenade Launcher > --- INVENTORY (20) --- Improved Ion Engine Subdweller Power Source Spiked Treads Subdweller Monowheel Subdweller Monowheel Large Storage Unit Large Matter Pod (150) Structural Scanner Light Armor Plating Scrap Shield Medium Laser Particle Gun Subdweller Laser Subdweller Laser Subdweller Beam Cannon Battle Cannon Slug Cannon Subdweller Shrapnel Launcher Mining Claw Peak State ------------ > --- POWER ------------ Improved Ion Engine > --- PROPULSION ------- Wheel Subdweller Monowheel > --- UTILITY ---------- High-capacity Storage Unit Core Shielding > --- WEAPON ----------- Battle Cannon Slug Cannon > --- INVENTORY -------- Improved Ion Engine Subdweller Power Source Subdweller Monowheel Large Storage Unit Large Matter Pod Structural Scanner Light Armor Plating Scrap Shield Medium Laser Particle Gun Subdweller Laser Subdweller Laser Subdweller Beam Cannon Barrage Gun Battle Cannon Mini Grenade Launcher Mining Claw [Rating: 16] Favorites ----------- Power Improved Ion Engine Engine Improved Ion Engine Propulsion Light Treads Treads Light Treads Wheel Wheel Utility Large Storage Unit Device Structural Scanner Storage Large Storage Unit Protection Core Shielding Weapon Improved Light Cannon Energy Gun Medium Laser Ballistic Gun Assault Rifle Ballistic Cannon Improved Light Cannon Launcher Mini Grenade Launcher Slashing Weapon Mining Claw Build | -11 -10 -10 ------- Run | Yrd Mat Sub Slots Evolved . | . . . Power . | . . . Propulsion . | . . . Utility . | . . . Weapon . | . . . Parts Attached 32 | 6 12 14 Power 4 | 1 2 1 Engine 4 | 1 2 1 Core . | . . . Reactor . | . . . Propulsion 5 | 2 . 3 Treads 3 | 2 . 1 Leg . | . . . Wheel 2 | . . 2 Hover . | . . . Flight . | . . . Utility 8 | 1 6 1 Device 2 | . 1 1 Storage 4 | 1 3 . Processor . | . . . Hackware . | . . . Protection 2 | . 2 . Artifact . | . . . Weapon 15 | 2 4 9 Energy Gun 3 | . 3 . Energy Cannon . | . . . Ballistic Gun 3 | 2 . 1 Ballistic Cannon 7 | . . 7 Launcher 1 | . 1 . Special Weapon . | . . . Impact Weapon . | . . . Slashing Weapon 1 | . . 1 Piercing Weapon . | . . . Special Melee Weapon . | . . . Unidentified Prototypes . | . . . Parts Lost 11 | . 4 7 Power 2 | . 1 1 Propulsion 3 | . . 3 Utility 1 | . 1 . Weapon 5 | . 2 3 Highest Loss Streak 3 | . 3 1 To Critical Strikes . | . . . Average Backups 13 | 2 12 15 Power 1 | . 1 2 Propulsion 1 | 1 1 1 Utility 3 | . 2 4 Weapon 6 | . 6 7 Tool/Special . | . . . Unused Backups 19 | . 3 16 Power 3 | . 1 2 Propulsion 4 | . . 4 Utility 4 | . . 4 Weapon 8 | . 2 6 Tool/Special . | . . . Average Slot Usage (%) 98 | . 97 99 Engine 13 | . 13 13 Treads 20 | . 26 15 Wheel 6 | . . 11 Device 8 | . 8 8 Storage 14 | . 14 14 Protection 5 | . 4 5 Energy Gun 8 | . 19 . Ballistic Gun 3 | . 6 . Ballistic Cannon 13 | . . 22 Slashing Weapon 2 | . . 4 Peak Build Rating 16 | 5 11 16 Average Rating 10 | 4 9 12 On Entrance 5 | . 5 11 Avg Prop Armor Cover (%) 11 | . . 11 Naked Turns . | . . . Heaviest Build 58 | 13 53 58 Greatest Support 40 | 20 40 40 Greatest Overweight (x) 3 | . 1 3 Average Overweight (x) 1 | . . 1 Largest Inventory Capacity 20 | 8 20 20 Average Capacity 14 | 7 12 15 Most Carried 20 | 5 16 20 Average Carried 13 | 2 12 15 Final Capacity 20 | 8 15 20 Final Carried 20 | 5 15 20 Class Distribution -------------------- 100% | Mutant Dominant Class ---------------- Mutant | -10/Materials Mutant | -10/Subcaves Resources | -11 -10 -10 ----------- Run | Yrd Mat Sub Matter Collected 1675 | 178 352 1145 Remotely . | . . . Salvage Created 966 | 29 488 449 Parts 52 | 1 25 26 Haulers Intercepted 2 | . 2 . Recyclers Shooed 1 | . 1 . Parts Field Recycled . | . . . Retrieved Matter . | . . . Parts Self-Destructed 18 | . . 18 Prevented . | . . . Parts Restored . | . . . Kills | -11 -10 -10 ------- Run | Yrd Mat Sub Combat Hostiles Destroyed 33 | . 13 20 Guns 5 | . 5 . Cannons 19 | . . 19 AOE 9 | . 8 1 Classes Destroyed 9 | 1 4 4 Tunneler 1 | 1 . . Hauler 2 | . 2 . Recycler 1 | . 1 . Swarmer 3 | . 3 . Grunt 13 | . 10 3 Sentry 1 | . . 1 Artisan 1 | . . 1 Subdweller 16 | . . 16 Scientist 1 | . . 1 Best Kill Streak 5 | 1 5 2 Combat Bots Only 5 | . 5 2 Max Kills in Single Turn 5 | 1 5 1 Gunslinging . | . . . Exploded 5 | . 5 1 Melee . | . . . Uniques/NPCs Destroyed . | . . . Combat | -11 -10 -10 -------- Run | Yrd Mat Sub Hostile Shots Fired 142 | . 45 97 Missed 41 | . 12 29 Hits 101 | . 33 68 Projectile 101 | . 33 68 Critical Strikes 1 | . 1 . Damage Taken 2229 | . 689 1540 Core 268 | . 71 197 Absorbed by Shields . | . . . Redirected to Shielding 41 | . . 41 Regen/Repaired (Parts) 110 | . 110 . Core Remaining (%) 100 | 100 . . Volleys Fired 109 | 3 31 75 Largest 2 | 2 2 2 Hottest 115 | 40 115 73 Shots Fired 218 | 6 62 150 Gun 70 | 6 59 5 Cannon 141 | . . 141 Launcher 7 | . 3 4 Special . | . . . Kinetic 196 | 6 44 146 Thermal 15 | . 15 . Explosive 7 | . 3 4 Electromagnetic . | . . . Robot Hit Streak 15 | 5 15 14 Robot Miss Streak 5 | 1 2 5 Penetration Max . | . . . Secondary Targets 1 | . 1 . Max Gunslinging Chain 1 | . 1 . Shots Hit Robots 163 | 5 48 110 Core Hits 66 | 2 29 35 Critical Kills . | . . . Critical Parts Destroyed . | . . . Critical Strikes 8 | . . 8 Blast 8 | . . 8 Melee Attacks 35 | . . 35 Impact . | . . . Slashing 35 | . . 35 Piercing . | . . . Sneak Attacks 1 | . . 1 Combat Hostiles . | . . . Follow-up Attacks . | . . . Damage Inflicted 3593 | 59 990 2544 Guns 595 | 53 496 46 Cannons 2179 | . . 2179 Explosions 755 | . 487 268 Melee 51 | . . 51 Ramming 13 | 6 7 . Kinetic 2652 | 53 374 2225 Thermal 122 | . 122 . Explosive 755 | . 487 268 Electromagnetic . | . . . Impact . | . . . Slashing 51 | . . 51 Piercing . | . . . Highest Corruption . | . . . Average Corruption . | . . . Corruption Purged . | . . . Corruption Blocked . | . . . Overload Shots . | . . . Overflow Damage 81 | . 78 3 Projectiles 3 | . . 3 Explosions 78 | . 78 . Melee . | . . . Knockbacks 24 | . . 24 Impact . | . . . Kinetic 24 | . . 24 Secondary . | . . . Self-Inflicted Damage 258 | . 211 47 Shots 5 | . 3 2 Rammed 5 | 1 4 . Targets Rammed 5 | 1 4 . Kicked . | . . . Crushed . | . . . Highest Temperature 75 | . 75 . Average Temperature 27 | . 27 . Received Heat Transfer 576 | . 246 330 Siege Activations . | . . . Martial Activations . | . . . Shielding Activations . | . . . Robots Disrupted . | . . . Combat Hostiles . | . . . Robots Corrupted . | . . . Combat Hostiles . | . . . Parts Fried . | . . . Impact Corruptions . | . . . Robots Melted . | . . . Combat Hostiles . | . . . Parts Melted . | . . . Heat Transferred 333 | . 333 . Parts Sabotaged . | . . . Parts Stolen . | . . . Parts Stripped . | . . . Power Chain Reactions . | . . . Alert | -11 -10 -10 ------- Run | Yrd Mat Sub Maximum Alert Level . | . . . Low Security (%) 100 | 100 100 . Level 1 . | . . . Level 2 . | . . . Level 3 . | . . . Level 4 . | . . . Level 5 . | . . . High Security . | . . . Max Security . | . . . Peak Influence 179 | 5 179 . Initial . | . . . Average 49 | . 52 . Influence Increases 551 | 5 456 90 Destroy 0b10 Robot/C 340 | . 260 80 Destroy 0b10 Robot/NC 20 | 5 15 . Destroy Leader 74 | . 64 10 Successful Hack 25 | . 25 . Disable Machine 45 | . 45 . Destroy Structure 47 | . 47 . Influence Decreases 551 | 5 456 90 Time Decay 511 | 5 416 90 Lost Part 40 | . 40 . Squads Dispatched 2 | . 2 . Investigation 1 | . 1 . Extermination . | . . . Reinforcement 1 | . 1 . Assault . | . . . Garrison . | . . . Intercept . | . . . Searches Triggered . | . . . Construction Impeded . | . . . Haulers Reinforced . | . . . Active Scanning Responses . | . . . Cargo Convoy Interrupts . | . . . Stealth | -11 -10 -10 --------- Run | Yrd Mat Sub Distress Signals . | . . . Communications Jammed . | . . . Distress Signals . | . . . Times Spotted 44 | . 22 22 Peak Tracking Total 7 | . 7 4 Tactical Retreats . | . . . Traps | -11 -10 -10 ------- Run | Yrd Mat Sub Traps Triggered 4 | . 2 2 Indirectly . | . . . Trap Hack Attempts . | . . . Triggered . | . . . Disarmed . | . . . Reprogrammed . | . . . Reused . | . . . Traps Extracted . | . . . Installed . | . . . Triggered . | . . . Machines | -11 -10 -10 ---------- Run | Yrd Mat Sub Machines Disabled 3 | . 3 . Max in Single Turn 2 | . 2 . Machines Repaired . | . . . Machines Dismantled . | . . . Machines Sabotaged . | . . . Overloaded Fab Kills . | . . . Hacking | -11 -10 -10 --------- Run | Yrd Mat Sub Machines Accessed 9 | . 7 2 Terminals 6 | . 6 . Fabricators . | . . . Repair Stations 1 | . 1 . Recycling Units . | . . . Scanalyzers . | . . . Garrison Access . | . . . Total Hacks 21 | . 18 3 Successful 15 | . 12 3 Failed 5 | . 5 . Catastrophic . | . . . Database Lockouts 1 | . 1 . Manual 17 | . 17 . Terminals 16 | . 16 . Fabricators . | . . . Repair Stations 2 | . 2 . Recycling Units . | . . . Scanalyzers . | . . . Garrison Access . | . . . Terminal Hacks 6 | . 3 3 Record 1 | . . 1 Robot Analysis 2 | . 2 . Open Door 1 | . . 1 Terminal Index 1 | . 1 . Release Object 1 | . . 1 Fabricator Hacks . | . . . Repair Station Hacks 2 | . 2 . Scan Component 1 | . 1 . Repair 1 | . 1 . Recycling Unit Hacks . | . . . Scanalyzer . | . . . Garrison Access Hacks . | . . . Unauthorized Hacks 7 | . 7 . Terminals 7 | . 7 . Botnet 1 | . 1 . Skim 6 | . 6 . Fabricators . | . . . Repair Stations . | . . . Recycling Units . | . . . Scanalyzers . | . . . Garrison Access . | . . . Data Cores Recovered . | . . . Used . | . . . Hacking Detections 7 | . 7 . Full Trace Events . | . . . Feedback Events . | . . . Feedback Blocked . | . . . Robot Schematics Acquired . | . . . Robots Built . | . . . Authchips . | . . . Time . | . . . Total Robot Build Rating . | . . . Part Schematics Acquired . | . . . Parts Built . | . . . Authchips . | . . . Time . | . . . Total Part Build Rating . | . . . Part Studies Acquired . | . . . Parts Repaired 1 | . 1 . Time 26 | . 26 . Parts Recycled . | . . . Recycled Matter . | . . . Retrieved Matter . | . . . Retrieved Components . | . . . Parts Scanalyzed . | . . . Part Schematics Acquired . | . . . Parts Damaged . | . . . Bothacking | -11 -10 -10 ------------ Run | Yrd Mat Sub Used RIF Installer . | . . . Robots Hacked . | . . . Non-combat . | . . . Combat . | . . . Robot Hacks Applied . | . . . Relay Couplers Released . | . . . Fabnet Peak Effective % . | . . . Robots Rewired . | . . . Allies Hacked . | . . . Hacks Repelled . | . . . Allies | -11 -10 -10 -------- Run | Yrd Mat Sub Total Allies . | . . . Largest Group . | . . . Highest-Rated Group . | . . . Highest-Rated Ally . | . . . Total Orders . | . . . Ally Attacks . | . . . Total Damage . | . . . Kills . | . . . Allies Corrupted . | . . . Allies Melted . | . . . Intel | -11 -10 -10 ------- Run | Yrd Mat Sub Active Infowar (turns) 1173 | . . 1173 Structural 1173 | . . 1173 Robot Analysis Total 2 | . 2 . Derelict Logs Recovered 1 | . . 1 Drone Launches . | . . . Drone Recoveries . | . . . Exploration | -11 -10 -10 ------------- Run | Yrd Mat Sub Turns Passed 3595 | 102 1444 2049 Spaces Moved 1930 | 50 663 1217 Core 1 | 1 . . Treads 1022 | 49 663 310 Legs . | . . . Wheels 907 | . . 907 Hover . | . . . Flight . | . . . Fastest Speed 50 | 50 160 107 Average Speed 141 | 157 160 129 Slowest Speed 240 | 160 240 160 Overloaded Moves . | . . . Propulsion Burnouts . | . . . Robots Hopped . | . . . Potential Cave-ins . | . . . Cave-ins Triggered . | . . . Exploration Rate (%) 55 | 6 97 62 Regions Visited 2 Branch Regions 1 Pre-discovered Areas 2 | . 1 1 Known Exits Taken 1 | . 1 . Unknown Exits Taken 1 | 1 . . Scrap Searched 12 | . . 12 Spaces Dug 12 | . . 12 Terrain Destroyed 83 | . 46 37 Melee 4 | . . 4 Projectile . | . . . AOE 79 | . 46 33 Terrain Rammed . | . . . Walls Destroyed . | . . . Machines Disabled . | . . . Actions | -11 -10 -10 --------- Run | Yrd Mat Sub Total 2502 | 64 984 1454 Wait 304 | . 243 61 Move 1929 | 50 662 1217 Hop . | . . . Pick Up 39 | 5 18 16 Fast Attach 8 | 5 3 . Attach 11 | . 4 7 Detach . | . . . Swap 49 | 1 11 37 Drop 14 | . 8 6 Fire 109 | 3 31 75 Melee 35 | . . 35 Ram . | . . . Kick . | . . . Crush 4 | . 4 . Escape Stasis . | . . . Rewire . | . . . Trap . | . . . Miscellaneous . | . . . Route ------- -11/Scrapyard -10/Materials (discovered 5 exits: [*Mat x3] / [*Min] / *Sub) -10/Subcaves (discovered 1 exit: [*Mat]) History --------- Turn | Location | Event 35 | -11/Scrapyard | Discovered new exit (range 15) 103 | -11/Scrapyard | Entered Materials 313 | -10/Materials | Build established: Mutant 362 | -10/Materials | Discovered new exit (range 7) 468 | -10/Materials | Lost 3 parts (1p2w) 648 | -10/Materials | Discovered new exit (range 14) 699 | -10/Materials | Repaired Lgt. Treads 832 | -10/Materials | Discovered new exit (range 10) 889 | -10/Materials | Discovered new exit (range 5) 1158 | -10/Materials | Central database locked down 1222 | -10/Materials | Identified exit to Subcaves 1276 | -10/Materials | Learned 4 Recycling zone layouts 1431 | -10/Materials | Learned location of Subcaves (-10) 1469 | -10/Materials | Learned location of 1 exit from Recycling 1547 | -10/Materials | Entered Subcaves 1548 | -10/Subcaves | Approached by a straggling Scientist 1685 | -10/Subcaves | Ambushed by Subdwellers from Twisted Machinery 1854 | -10/Subcaves | A swath of the cavern ceiling suddenly collapsed 2071 | -10/Subcaves | Learned location of Zion (-6) 2071 | -10/Subcaves | Met a Zionite searching for "candidates" 2137 | -10/Subcaves | Learned Materials stockpile data 2239 | -10/Subcaves | Core integrity fell below 50% 2452 | -10/Subcaves | Discovered new exit (range 16) 2791 | -10/Subcaves | Ambushed by angry Subdweller bent on revenge 3348 | -10/Subcaves | Shifting Twisted Machinery released Sub. Laser 3359 | -10/Subcaves | Shifting Twisted Machinery released Battle Rifle 3590 | -10/Subcaves | Core integrity fell below 20% 3596 | -10/Subcaves | Destroyed by MF-FC9(R) with Subdweller Machine Gun Last Messages --------------- 03517_ Acquired 46 matter. 03520_ Searching scrap... 03520_ Found Flamer. 03520_ Found Sub. Monowheel. 03520_ Found 36 Matter. 03521_ Acquired 36 matter. 03522_ Searching scrap... 03522_ Found Battle Rifle. 03522_ Found 39 Matter. 03523_ Acquired 39 matter. 03525_ Searching scrap... 03525_ Found Enh. Flamer. 03525_ Found Sub. Shrapnel Launcher. 03525_ Found 56 Matter. 03526_ Acquired 37 matter. 03527_ Acquired Sub. Monowheel. 03530_ Acquired Sub. Shrapnel Launcher. 03593_ 8A-6SD(R) destroyed. 03595_ MF-FC9(R) affixes Scrap Shield Fragment to Scrap Shield. Map ----- +----------------------------------------------------+ | ?????????????????????????????????????????????? | | ?????????????????????????????????????????????? | | ?????????????????????????????????????????????? | | ?????????????????????????????????????????????? | | ?????????????????????????????????????????????? | | ?????????????????????????????????????????????? | | ?????????????????????????????????????????????? | | ?????????????????????????????????????????????? | | ????????????????????###??????????????????????? | | ???????????????????? ##??????????????????????? | | ???????????????????? ?#????????????????????? | | ?????????????????????? ? ????????????????????? | | ?????????????????????? ??##????????????????? | | ??????????????????????? ?? ????????????????? | | ????################???? ????????????????? | | ???######### ### ###??? ## ????????????????? | | ???###% " " ##??? # #??????????????? | | ???## | % ##??? ####?????????????? | | ???## [| ##??? ###?????????????? | | ???##[ & ##??? ##?????????????? | | ???##" "##??? #?????????????? | | ???#####"" # ""##??## #?????????????? | | ???############ "" ##??# &%R ##?????????????? | | ??????########" " "##### [ #?????????????? | | ???????## &# ""###### #?????????????? | | ???????### = * %"#### @ #?????????????? | | ?????####" *##! ^##### ## ##?????????????? | | ???######" "###### ## # ##?????????????? | | ???#### " ### # ### ###?????????????? | | ???## ### ##?????????????? | | ???## # ###?????????????? | | ???## ######## ###?????????????? | | ???### ##### ## #??????????????? | | ???#### ####?? ##??????????????? | | ????### ###### ##??????????????? | | ?????## ###?### #####??????????????? | | ?????##### ## ####?### ######??????????????? | | ?????##### ####### ##??????????????????? | | ???????## ###### ##??????????????????? | | ???????### ## ####????????????????? | | ???????##### ## #######?????????????? | | ????????##### ## #####?????????????? | | ??????????### ## """##?????????????? | | ???????????### "" ## """##?????????????? | | ???????????####"" ## """"###?????????????? | | ?????????## ###"" """" ###??????????????? | | ?????????## """ " """ ###??????????????? | | ?????????## [""### ##??????????????? | | ?????????## """### ##??????????????? | | ?????????### ""?## ###??????????????? | +----------------------------------------------------+ Best States ------------- Heat Dissipation 35 Energy Generation 12 Energy Capacity 265 Matter Stores 300 Matter Capacity 300 Sight Range 16 Terrain Scan Density 10 Armor Coverage 150 Core Shielding 20 Evasion (%) 40 Recoil Reduction 2 Item Schematics ----------------- None Robot Schematics ------------------ None Fabricated ------------ Nothing Repaired ---------- Lgt. Treads | 21% | -10/Materials Studied --------- None Alien Tech Used ----------------- None Achievements -------------- None Challenges ------------ None Game ------ Seed OmegaSensorAxe Manual? 0 Play Time 00:16:36 Cumulative 135.4 hours Start 2025.12.04 @ 17:21:39 End 2025.12.04 @ 17:40:46 Sessions 1 Manual Loads 0 Difficulty Rogue Special Mode None Game No. 339 Rogue 337 Adventurer 2 Explorer 0 Win Type - Total 1 Types 1/0/0/0/0/0/0/0/0/0 Lore% 80 Gallery% 63 Achievement% 42 Wizard Run 0 Options --------- Layout 2 ASCII 0 Keyboard 0 Movement Numpad Keybinds 0 Fullscreen 2 Font 24/Smallcaps Map View 50x44 Zoom Use 0% Tactical HUD 1 Map Filters NONE Filters NONE Steam 1 RUN: d42025d2-ce46-4cb3-ab8f-f072f0bb7147